[Event "Late-Titled-Tuesday-Blitz-March-19-2024"]
[Site "Chess.com"]
[Date "2024.03.19"]
[Round "10"]
[White "kikoveiga"]
[Black "SocoLoco"]
[Result "1-0"]
[WhiteElo "2459"]
[BlackElo "2144"]
[TimeControl "180+1"]
[EndTime "15:54:58 PDT"]
[Termination "kikoveiga won on time"]

1. e4 {[%clk 0:03:00.9]} 1... c5 {[%clk 0:02:57.9]} 2. Nf3 {[%clk 0:03:01]} 2...
e6 {[%clk 0:02:57.4]} 3. d4 {[%clk 0:03:01.3]} 3... cxd4 {[%clk 0:02:56.8]} 4.
Nxd4 {[%clk 0:03:02.2]} 4... Nf6 {[%clk 0:02:56.7]} 5. Nc3 {[%clk 0:03:00.1]}
5... Nc6 {[%clk 0:02:57]} 6. Ndb5 {[%clk 0:03:00]} 6... d6 {[%clk 0:02:56.3]} 7.
Bg5 {[%clk 0:02:59.1]} 7... a6 {[%clk 0:02:53.6]} 8. Nd4 {[%clk 0:02:55.7]} 8...
Be7 {[%clk 0:02:51.6]} 9. Nf3 {[%clk 0:02:34]} 9... Qa5 {[%clk 0:02:46.9]} 10.
Bd2 {[%clk 0:02:28.4]} 10... Qb6 {[%clk 0:02:39.8]} 11. Rb1 {[%clk 0:02:09.2]}
11... O-O {[%clk 0:02:37.8]} 12. Bc4 {[%clk 0:01:52.1]} 12... Rd8 {[%clk
0:02:36.4]} 13. O-O {[%clk 0:01:52.1]} 13... Qc7 {[%clk 0:02:16.1]} 14. Bb3
{[%clk 0:01:50.4]} 14... b5 {[%clk 0:02:13.9]} 15. a3 {[%clk 0:01:45.4]} 15...
Bb7 {[%clk 0:02:13.5]} 16. Qe2 {[%clk 0:01:44.3]} 16... Rac8 {[%clk 0:02:10.1]}
17. Rbd1 {[%clk 0:01:39.4]} 17... h6 {[%clk 0:02:06.9]} 18. Rfe1 {[%clk
0:01:39.4]} 18... Ng4 {[%clk 0:01:57.7]} 19. Bf4 {[%clk 0:01:37.5]} 19... Bf6
{[%clk 0:01:50.7]} 20. h3 {[%clk 0:01:25.2]} 20... Nge5 {[%clk 0:01:50.1]} 21.
Nxe5 {[%clk 0:01:22]} 21... Bxe5 {[%clk 0:01:46.5]} 22. Bxe5 {[%clk 0:01:18.8]}
22... Nxe5 {[%clk 0:01:47.4]} 23. f4 {[%clk 0:01:18.8]} 23... Nc4 {[%clk
0:01:46.2]} 24. Bxc4 {[%clk 0:01:17.1]} 24... Qxc4 {[%clk 0:01:45.9]} 25. Qe3
{[%clk 0:01:14.6]} 25... a5 {[%clk 0:01:35.3]} 26. Rd4 {[%clk 0:01:14.5]} 26...
Qc5 {[%clk 0:01:33.4]} 27. e5 {[%clk 0:00:58.1]} 27... d5 {[%clk 0:01:11.1]} 28.
Red1 {[%clk 0:00:48.5]} 28... b4 {[%clk 0:01:10.9]} 29. axb4 {[%clk 0:00:48.5]}
29... axb4 {[%clk 0:01:11.3]} 30. Ne2 {[%clk 0:00:46.7]} 30... Qxc2 {[%clk
0:01:08.3]} 31. R1d2 {[%clk 0:00:43.4]} 31... Qc5 {[%clk 0:01:00.5]} 32. Kh2
{[%clk 0:00:42.9]} 32... Ba6 {[%clk 0:00:56]} 33. Ng3 {[%clk 0:00:42.6]} 33...
Qc1 {[%clk 0:00:51.1]} 34. f5 {[%clk 0:00:42.2]} 34... Rc2 {[%clk 0:00:46.3]}
35. f6 {[%clk 0:00:35.7]} 35... Rxd2 {[%clk 0:00:43.4]} 36. Rxd2 {[%clk
0:00:32.5]} 36... d4 {[%clk 0:00:20.8]} 37. Qf4 {[%clk 0:00:30.8]} 37... g5
{[%clk 0:00:18.9]} 38. Qf2 {[%clk 0:00:29.8]} 38... Qc4 {[%clk 0:00:15.8]} 39.
Ne4 {[%clk 0:00:24.5]} 39... d3 {[%clk 0:00:15.3]} 40. Nd6 {[%clk 0:00:23.3]}
40... Qf4+ {[%clk 0:00:14.4]} 41. Qxf4 {[%clk 0:00:22.7]} 41... gxf4 {[%clk
0:00:15]} 42. Rd1 {[%clk 0:00:20.7]} 42... Kh7 {[%clk 0:00:13.6]} 43. Rf1 {[%clk
0:00:20.7]} 43... Kg6 {[%clk 0:00:13.5]} 44. Rxf4 {[%clk 0:00:21]} 44... Rb8
{[%clk 0:00:12.8]} 45. Rd4 {[%clk 0:00:15.1]} 45... Rb6 {[%clk 0:00:12.3]} 46.
Kg3 {[%clk 0:00:14.1]} 46... b3 {[%clk 0:00:11.5]} 47. Kf4 {[%clk 0:00:14.3]}
47... Bb7 {[%clk 0:00:10.7]} 48. g4 {[%clk 0:00:14.3]} 48... Bd5 {[%clk
0:00:09.8]} 49. h4 {[%clk 0:00:13.8]} 49... Ra6 {[%clk 0:00:08.6]} 50. Rxd3
{[%clk 0:00:14]} 50... Ra2 {[%clk 0:00:07.2]} 51. Rd2 {[%clk 0:00:13.1]} 51...
Ra1 {[%clk 0:00:07.7]} 52. Kg3 {[%clk 0:00:13.1]} 52... Rc1 {[%clk 0:00:07.5]}
53. Rf2 {[%clk 0:00:08.6]} 53... Rc2 {[%clk 0:00:07.2]} 54. Nb5 {[%clk 0:00:06]}
54... Rc5 {[%clk 0:00:05.1]} 55. Nd4 {[%clk 0:00:06]} 55... Be4 {[%clk
0:00:04.3]} 56. Ne2 {[%clk 0:00:06.3]} 56... Rc2 {[%clk 0:00:03.1]} 57. Nf4+
{[%clk 0:00:06.7]} 1-0

[Event "Late-Titled-Tuesday-Blitz-March-19-2024"]
[Site "Chess.com"]
[Date "2024.03.19"]
[Round "10"]
[White "FabianoCaruana"]
[Black "FairChess_on_YouTube"]
[Result "1-0"]
[WhiteElo "3092"]
[BlackElo "3147"]
[TimeControl "180+1"]
[EndTime "15:55:04 PDT"]
[Termination "FabianoCaruana won by checkmate"]

1. e4 {[%clk 0:03:00.9]} 1... c5 {[%clk 0:02:59.9]} 2. Nf3 {[%clk 0:03:00.5]}
2... Nc6 {[%clk 0:02:58.8]} 3. Bb5 {[%clk 0:03:00.3]} 3... Nf6 {[%clk
0:02:58.8]} 4. Nc3 {[%clk 0:02:57]} 4... g6 {[%clk 0:02:58.3]} 5. e5 {[%clk
0:02:54.5]} 5... Ng4 {[%clk 0:02:57.9]} 6. Bxc6 {[%clk 0:02:54.4]} 6... dxc6
{[%clk 0:02:58.8]} 7. h3 {[%clk 0:02:54.3]} 7... Nh6 {[%clk 0:02:58.6]} 8. d3
{[%clk 0:02:54.7]} 8... Nf5 {[%clk 0:02:57.8]} 9. O-O {[%clk 0:02:54.7]} 9...
Bg7 {[%clk 0:02:57.6]} 10. Re1 {[%clk 0:02:55.1]} 10... O-O {[%clk 0:02:55.1]}
11. Bf4 {[%clk 0:02:54.8]} 11... Nd4 {[%clk 0:02:53.4]} 12. Ne4 {[%clk
0:02:45.4]} 12... b6 {[%clk 0:02:52.9]} 13. Nxd4 {[%clk 0:02:40.9]} 13... Qxd4
{[%clk 0:02:43.5]} 14. c3 {[%clk 0:02:09.3]} 14... Qd5 {[%clk 0:02:41]} 15. Ng3
{[%clk 0:01:48.9]} 15... Be6 {[%clk 0:02:36.6]} 16. Re3 {[%clk 0:01:42.5]} 16...
Rae8 {[%clk 0:02:26.4]} 17. Qa4 {[%clk 0:01:37.6]} 17... Qd7 {[%clk 0:01:56.1]}
18. Rae1 {[%clk 0:01:32.9]} 18... f5 {[%clk 0:01:29.8]} 19. exf6 {[%clk
0:01:29.5]} 19... exf6 {[%clk 0:01:29.9]} 20. Ne4 {[%clk 0:01:27.1]} 20... Bd5
{[%clk 0:01:24.3]} 21. Bd6 {[%clk 0:01:21.4]} 21... f5 {[%clk 0:01:12.1]} 22.
Bxf8 {[%clk 0:01:18]} 22... Rxf8 {[%clk 0:01:13]} 23. Ng5 {[%clk 0:01:10.2]}
23... Bf6 {[%clk 0:01:13.1]} 24. Ne6 {[%clk 0:01:06.9]} 24... Rf7 {[%clk
0:01:06.4]} 25. Nf4 {[%clk 0:01:05.4]} 25... Kg7 {[%clk 0:01:06]} 26. Nxd5
{[%clk 0:01:04.3]} 26... Qxd5 {[%clk 0:01:06.9]} 27. Qb3 {[%clk 0:01:00.3]}
27... Qd7 {[%clk 0:01:01.7]} 28. Qc4 {[%clk 0:00:51]} 28... h5 {[%clk
0:01:01.5]} 29. a4 {[%clk 0:00:50.4]} 29... a5 {[%clk 0:00:49.1]} 30. Re6 {[%clk
0:00:49.5]} 30... h4 {[%clk 0:00:48.2]} 31. Qf4 {[%clk 0:00:38]} 31... Qd5
{[%clk 0:00:19.5]} 32. Qf3 {[%clk 0:00:32.1]} 32... Qb3 {[%clk 0:00:18.5]} 33.
Qxc6 {[%clk 0:00:19.9]} 33... Qxb2 {[%clk 0:00:17.9]} 34. d4 {[%clk 0:00:16.2]}
34... Qxc3 {[%clk 0:00:11.7]} 35. d5 {[%clk 0:00:16.4]} 35... c4 {[%clk
0:00:09.9]} 36. d6 {[%clk 0:00:15.2]} 36... Qd4 {[%clk 0:00:07.7]} 37. d7 {[%clk
0:00:14.7]} 37... c3 {[%clk 0:00:07.5]} 38. Rd6 {[%clk 0:00:13]} 38... Qb4
{[%clk 0:00:03.6]} 39. d8=Q {[%clk 0:00:12.9]} 39... c2 {[%clk 0:00:03.6]} 40.
Rc1 {[%clk 0:00:06.8]} 40... Bxd8 {[%clk 0:00:01]} 41. Rxd8 {[%clk 0:00:07.7]}
41... Qb2 {[%clk 0:00:01.3]} 42. Qxc2 {[%clk 0:00:07]} 42... Qf6 {[%clk
0:00:01.9]} 43. Qc3 {[%clk 0:00:07.1]} 43... Kh6 {[%clk 0:00:01.2]} 44. Qxf6
{[%clk 0:00:06.7]} 44... Rxf6 {[%clk 0:00:02.1]} 45. Rdc8 {[%clk 0:00:07.3]}
45... Kg5 {[%clk 0:00:03]} 46. R8c6 {[%clk 0:00:07.7]} 46... Rf7 {[%clk
0:00:03.7]} 47. Rxb6 {[%clk 0:00:08.1]} 47... Rd7 {[%clk 0:00:04.6]} 48. Rcc6
{[%clk 0:00:08.3]} 48... Rd1+ {[%clk 0:00:04.7]} 49. Kh2 {[%clk 0:00:08.8]}
49... Rd2 {[%clk 0:00:05.6]} 50. Rxg6+ {[%clk 0:00:08.7]} 50... Kf4 {[%clk
0:00:06.5]} 51. Rb5 {[%clk 0:00:08.4]} 51... Rxf2 {[%clk 0:00:06.6]} 52. Rf6
{[%clk 0:00:08.9]} 52... Ke4 {[%clk 0:00:05.9]} 53. Rxa5 {[%clk 0:00:08.7]}
53... f4 {[%clk 0:00:06.3]} 54. Rg5 {[%clk 0:00:08.3]} 54... Ra2 {[%clk
0:00:05.4]} 55. Rg4 {[%clk 0:00:08.4]} 55... Ke3 {[%clk 0:00:06.2]} 56. Rfxf4
{[%clk 0:00:08.4]} 56... Ke2 {[%clk 0:00:05.8]} 57. Rxh4 {[%clk 0:00:08.6]}
57... Ke1 {[%clk 0:00:06.1]} 58. Rhg4 {[%clk 0:00:08.9]} 58... Ra3 {[%clk
0:00:04.3]} 59. h4 {[%clk 0:00:08.7]} 59... Rb3 {[%clk 0:00:03.7]} 60. h5 {[%clk
0:00:08.8]} 60... Rb7 {[%clk 0:00:04.3]} 61. Rh4 {[%clk 0:00:09]} 61... Rg7
{[%clk 0:00:04.1]} 62. h6 {[%clk 0:00:09]} 62... Rh7 {[%clk 0:00:05]} 63. Rf3
{[%clk 0:00:08.6]} 63... Ke2 {[%clk 0:00:05.9]} 64. a5 {[%clk 0:00:07.9]} 64...
Kd1 {[%clk 0:00:06.8]} 65. a6 {[%clk 0:00:08.2]} 65... Ke1 {[%clk 0:00:07.7]}
66. a7 {[%clk 0:00:08.1]} 66... Ke2 {[%clk 0:00:08.6]} 67. a8=Q {[%clk
0:00:07.5]} 67... Rxh6 {[%clk 0:00:09.5]} 68. Qa2+ {[%clk 0:00:07.1]} 68... Ke1
{[%clk 0:00:10.3]} 69. Qb1+ {[%clk 0:00:06.6]} 69... Kd2 {[%clk 0:00:10.6]} 70.
Qb2+ {[%clk 0:00:06.6]} 70... Kd1 {[%clk 0:00:10.8]} 71. Rf1# {[%clk 0:00:06.2]}
1-0

[Event "Late-Titled-Tuesday-Blitz-March-19-2024"]
[Site "Chess.com"]
[Date "2024.03.19"]
[Round "10"]
[White "KorolDimitriy75"]
[Black "AntonovaNadezhda"]
[Result "1-0"]
[WhiteElo "2371"]
[BlackElo "2197"]
[TimeControl "180+1"]
[EndTime "15:55:06 PDT"]
[Termination "KorolDimitriy75 won on time"]

1. d4 {[%clk 0:03:00.9]} 1... Nf6 {[%clk 0:02:59.4]} 2. c4 {[%clk 0:03:01.2]}
2... g6 {[%clk 0:02:59.9]} 3. Nc3 {[%clk 0:03:01.7]} 3... Bg7 {[%clk 0:03:00.6]}
4. e4 {[%clk 0:03:01.7]} 4... d6 {[%clk 0:03:01.2]} 5. Nf3 {[%clk 0:03:02.6]}
5... O-O {[%clk 0:03:01.5]} 6. Be2 {[%clk 0:03:03.5]} 6... e5 {[%clk 0:03:01.8]}
7. dxe5 {[%clk 0:03:04.4]} 7... dxe5 {[%clk 0:03:01.7]} 8. Qxd8 {[%clk
0:03:05.3]} 8... Rxd8 {[%clk 0:03:01.6]} 9. Bg5 {[%clk 0:03:05.9]} 9... Re8
{[%clk 0:02:56.8]} 10. O-O-O {[%clk 0:03:05.7]} 10... Nc6 {[%clk 0:02:40.9]} 11.
Nb5 {[%clk 0:03:02.6]} 11... Re7 {[%clk 0:02:33.4]} 12. Nc3 {[%clk 0:03:01.9]}
12... Be6 {[%clk 0:02:27.8]} 13. Nd5 {[%clk 0:02:54.7]} 13... Bxd5 {[%clk
0:02:27.5]} 14. cxd5 {[%clk 0:02:24.9]} 14... Nd4 {[%clk 0:02:21.4]} 15. Nxd4
{[%clk 0:02:23.7]} 15... exd4 {[%clk 0:02:22.3]} 16. f3 {[%clk 0:02:16.5]} 16...
h6 {[%clk 0:02:21]} 17. Bh4 {[%clk 0:02:16.3]} 17... g5 {[%clk 0:02:16]} 18. Bf2
{[%clk 0:02:16.2]} 18... Nxd5 {[%clk 0:02:15.5]} 19. Bxd4 {[%clk 0:02:13.7]}
19... Nf4 {[%clk 0:02:10.2]} 20. Bf1 {[%clk 0:02:01.7]} 20... Rd8 {[%clk
0:01:49.2]} 21. Bxg7 {[%clk 0:01:54.9]} 21... Rxd1+ {[%clk 0:01:47.5]} 22. Kxd1
{[%clk 0:01:55.8]} 22... Kxg7 {[%clk 0:01:47.4]} 23. g3 {[%clk 0:01:56.1]} 23...
Rd7+ {[%clk 0:01:43.7]} 24. Kc2 {[%clk 0:01:55.2]} 24... Ng6 {[%clk 0:01:42.3]}
25. Be2 {[%clk 0:01:48.5]} 25... Kf6 {[%clk 0:01:35]} 26. Rf1 {[%clk 0:01:27.1]}
26... Ke5 {[%clk 0:01:34.2]} 27. Bd3 {[%clk 0:01:26.3]} 27... Rd6 {[%clk
0:01:26.5]} 28. Kc3 {[%clk 0:01:19.6]} 28... Rc6+ {[%clk 0:01:05.4]} 29. Kd2
{[%clk 0:01:19.6]} 29... Rd6 {[%clk 0:01:04.9]} 30. Ke3 {[%clk 0:01:19.6]} 30...
Ke6 {[%clk 0:00:40.7]} 31. f4 {[%clk 0:01:18]} 31... Ke7 {[%clk 0:00:37]} 32. e5
{[%clk 0:01:13.3]} 32... Rb6 {[%clk 0:00:35.9]} 33. b3 {[%clk 0:01:12.6]} 33...
gxf4+ {[%clk 0:00:27.4]} 34. gxf4 {[%clk 0:01:13.5]} 34... a5 {[%clk 0:00:27.3]}
35. Rc1 {[%clk 0:01:07]} 35... c6 {[%clk 0:00:25.3]} 36. Rc4 {[%clk 0:00:54.6]}
36... Nf8 {[%clk 0:00:17.9]} 37. f5 {[%clk 0:00:53.2]} 37... Nd7 {[%clk
0:00:17.5]} 38. Kf4 {[%clk 0:00:53]} 38... Rb4 {[%clk 0:00:13.2]} 39. f6+ {[%clk
0:00:51.5]} 39... Kf8 {[%clk 0:00:11.7]} 40. Kf5 {[%clk 0:00:47.1]} 40... Rxc4
{[%clk 0:00:08.5]} 41. Bxc4 {[%clk 0:00:47.3]} 41... b5 {[%clk 0:00:07.9]} 42.
Be2 {[%clk 0:00:40.7]} 42... Nc5 {[%clk 0:00:07.5]} 43. Bf3 {[%clk 0:00:40.1]}
43... Ne6 {[%clk 0:00:04.6]} 44. Kg4 {[%clk 0:00:38.6]} 44... Nd4 {[%clk
0:00:03.9]} 45. Be4 {[%clk 0:00:38.3]} 45... c5 {[%clk 0:00:03.7]} 46. Kh5
{[%clk 0:00:34.8]} 46... c4 {[%clk 0:00:03.6]} 47. bxc4 {[%clk 0:00:35]} 47...
bxc4 {[%clk 0:00:04.5]} 48. Kxh6 {[%clk 0:00:35]} 48... c3 {[%clk 0:00:05]} 49.
h4 {[%clk 0:00:33.4]} 49... c2 {[%clk 0:00:05.2]} 50. Bxc2 {[%clk 0:00:33.3]}
50... Nxc2 {[%clk 0:00:06.1]} 51. Kg5 {[%clk 0:00:32.9]} 51... Nd4 {[%clk
0:00:06.4]} 52. h5 {[%clk 0:00:31.9]} 52... Ne6+ {[%clk 0:00:06.9]} 53. Kf5
{[%clk 0:00:32.2]} 53... Nd4+ {[%clk 0:00:06.6]} 54. Ke4 {[%clk 0:00:32.3]}
54... Ne6 {[%clk 0:00:06.4]} 55. a4 {[%clk 0:00:30.5]} 55... Kg8 {[%clk
0:00:06.6]} 56. Kd5 {[%clk 0:00:30.2]} 56... Kh7 {[%clk 0:00:04.9]} 57. Kc6
{[%clk 0:00:29.7]} 57... Kg8 {[%clk 0:00:05.4]} 58. Kb5 {[%clk 0:00:29.7]} 58...
Nf4 {[%clk 0:00:06]} 59. Kxa5 {[%clk 0:00:30.3]} 59... Nxh5 {[%clk 0:00:05.4]}
60. Kb6 {[%clk 0:00:30.1]} 60... Nf4 {[%clk 0:00:05.9]} 61. a5 {[%clk
0:00:29.8]} 61... Nd5+ {[%clk 0:00:06.5]} 62. Kc6 {[%clk 0:00:29]} 62... Nb4+
{[%clk 0:00:06.7]} 63. Kb5 {[%clk 0:00:29.3]} 63... Nd5 {[%clk 0:00:06.4]} 64.
a6 {[%clk 0:00:28.9]} 64... Nc7+ {[%clk 0:00:06.2]} 65. Kb6 {[%clk 0:00:29.3]}
65... Nd5+ {[%clk 0:00:06.3]} 66. Kb5 {[%clk 0:00:28.4]} 66... Nc7+ {[%clk
0:00:06.3]} 67. Kb6 {[%clk 0:00:28.8]} 67... Nd5+ {[%clk 0:00:06.5]} 68. Kc5
{[%clk 0:00:29]} 68... Nc7 {[%clk 0:00:01.9]} 69. a7 {[%clk 0:00:29.1]} 1-0

[Event "Late-Titled-Tuesday-Blitz-March-19-2024"]
[Site "Chess.com"]
[Date "2024.03.19"]
[Round "10"]
[White "JoakimVonAnd"]
[Black "nabukatnezarr"]
[Result "1/2-1/2"]
[WhiteElo "2701"]
[BlackElo "2588"]
[TimeControl "180+1"]
[EndTime "15:55:09 PDT"]
[Termination "Game drawn - insufficient material"]

1. c4 {[%clk 0:03:00.9]} 1... Nf6 {[%clk 0:02:57.9]} 2. Nf3 {[%clk 0:02:59.5]}
2... g6 {[%clk 0:02:57]} 3. b3 {[%clk 0:02:52.8]} 3... Bg7 {[%clk 0:02:56.5]} 4.
Bb2 {[%clk 0:02:53.4]} 4... O-O {[%clk 0:02:56.7]} 5. g3 {[%clk 0:02:53]} 5...
d6 {[%clk 0:02:57.1]} 6. Bg2 {[%clk 0:02:53.3]} 6... e5 {[%clk 0:02:57.4]} 7.
O-O {[%clk 0:02:52.5]} 7... e4 {[%clk 0:02:44.4]} 8. Ne1 {[%clk 0:02:49.8]} 8...
Re8 {[%clk 0:02:39.5]} 9. d3 {[%clk 0:02:49.2]} 9... Nc6 {[%clk 0:02:35.4]} 10.
Nc3 {[%clk 0:02:30]} 10... e3 {[%clk 0:02:27.7]} 11. fxe3 {[%clk 0:02:26.8]}
11... Ng4 {[%clk 0:02:20.1]} 12. Nc2 {[%clk 0:02:20.5]} 12... Nxe3 {[%clk
0:02:10.7]} 13. Nxe3 {[%clk 0:02:18.9]} 13... Rxe3 {[%clk 0:02:11.6]} 14. Qd2
{[%clk 0:02:10.9]} 14... Re8 {[%clk 0:02:05.3]} 15. Nd5 {[%clk 0:02:05.5]} 15...
Ne5 {[%clk 0:01:57.7]} 16. Qf4 {[%clk 0:01:39.9]} 16... Be6 {[%clk 0:01:49.5]}
17. Nf6+ {[%clk 0:01:36.8]} 17... Bxf6 {[%clk 0:01:46.5]} 18. Qxf6 {[%clk
0:01:37.7]} 18... Qxf6 {[%clk 0:01:47.1]} 19. Rxf6 {[%clk 0:01:38.6]} 19... c6
{[%clk 0:01:46.7]} 20. h3 {[%clk 0:01:35.7]} 20... a5 {[%clk 0:01:45]} 21. a3
{[%clk 0:01:29.5]} 21... Nd7 {[%clk 0:01:42.5]} 22. Rf2 {[%clk 0:01:25.9]} 22...
Nc5 {[%clk 0:01:43]} 23. b4 {[%clk 0:01:23.2]} 23... axb4 {[%clk 0:01:43.9]} 24.
axb4 {[%clk 0:01:24]} 24... Rxa1+ {[%clk 0:01:44.2]} 25. Bxa1 {[%clk 0:01:23.9]}
25... Ra8 {[%clk 0:01:44.8]} 26. Rf1 {[%clk 0:01:15.5]} 26... Nb3 {[%clk
0:01:44.4]} 27. Bc3 {[%clk 0:01:15.1]} 27... Ra2 {[%clk 0:01:41.4]} 28. Rb1
{[%clk 0:01:12.4]} 28... Nd2 {[%clk 0:01:32.8]} 29. Rb2 {[%clk 0:01:03.7]} 29...
Rxb2 {[%clk 0:00:46.4]} 30. Bxb2 {[%clk 0:01:04.6]} 30... d5 {[%clk 0:00:46.4]}
31. c5 {[%clk 0:01:01.2]} 31... Nb3 {[%clk 0:00:39.8]} 32. Kf2 {[%clk
0:01:00.1]} 32... d4 {[%clk 0:00:38.9]} 33. Ke1 {[%clk 0:00:47.9]} 33... h5
{[%clk 0:00:23.6]} 34. Kd1 {[%clk 0:00:45.2]} 34... g5 {[%clk 0:00:23.6]} 35.
Kc2 {[%clk 0:00:44.8]} 35... h4 {[%clk 0:00:23.1]} 36. gxh4 {[%clk 0:00:42.6]}
36... gxh4 {[%clk 0:00:24]} 37. Ba3 {[%clk 0:00:41.9]} 37... Kh7 {[%clk
0:00:12.9]} 38. b5 {[%clk 0:00:40.5]} 38... cxb5 {[%clk 0:00:07.4]} 39. Bxb7
{[%clk 0:00:39.9]} 39... Na5 {[%clk 0:00:07.9]} 40. Be4+ {[%clk 0:00:30.1]}
40... f5 {[%clk 0:00:08.2]} 41. Bf3 {[%clk 0:00:30.2]} 41... Bd7 {[%clk
0:00:08.4]} 42. Bb2 {[%clk 0:00:21.3]} 42... Nc6 {[%clk 0:00:09.3]} 43. Bc1
{[%clk 0:00:14.7]} 43... Kg6 {[%clk 0:00:09.4]} 44. Bf4 {[%clk 0:00:14.9]} 44...
Ne7 {[%clk 0:00:07.8]} 45. Kb3 {[%clk 0:00:13.7]} 45... Nc6 {[%clk 0:00:08.4]}
46. Bg2 {[%clk 0:00:12.3]} 46... Kf6 {[%clk 0:00:08.3]} 47. Bd5 {[%clk
0:00:11.3]} 47... Be6 {[%clk 0:00:07.8]} 48. Bxe6 {[%clk 0:00:10.1]} 48... Kxe6
{[%clk 0:00:08.7]} 49. Bg5 {[%clk 0:00:10.7]} 49... Kd5 {[%clk 0:00:08.8]} 50.
Bxh4 {[%clk 0:00:08.6]} 50... Kxc5 {[%clk 0:00:09.2]} 51. Bf2 {[%clk 0:00:05.9]}
51... Kd5 {[%clk 0:00:10.1]} 52. h4 {[%clk 0:00:06.2]} 52... Ke5 {[%clk
0:00:10.8]} 53. h5 {[%clk 0:00:05.2]} 53... Kf6 {[%clk 0:00:09.4]} 54. e3 {[%clk
0:00:05.8]} 54... Kg5 {[%clk 0:00:08.2]} 55. exd4 {[%clk 0:00:05.9]} 55... Kxh5
{[%clk 0:00:08.6]} 56. d5 {[%clk 0:00:06.6]} 56... Ne7 {[%clk 0:00:09]} 57. d6
{[%clk 0:00:06]} 57... Nc6 {[%clk 0:00:09.4]} 58. d7 {[%clk 0:00:05.3]} 58...
Kg4 {[%clk 0:00:09.6]} 59. d4 {[%clk 0:00:05.8]} 59... Kf3 {[%clk 0:00:08.8]}
60. d5 {[%clk 0:00:06.4]} 60... Nd8 {[%clk 0:00:09.3]} 61. Bb6 {[%clk
0:00:06.7]} 61... Nb7 {[%clk 0:00:05.2]} 62. Kb4 {[%clk 0:00:06.7]} 62... Ke4
{[%clk 0:00:05]} 63. d6 {[%clk 0:00:05.5]} 63... Kd5 {[%clk 0:00:05.1]} 64. d8=Q
{[%clk 0:00:02.7]} 64... Nxd8 {[%clk 0:00:05]} 65. Bxd8 {[%clk 0:00:03.6]} 65...
Kxd6 {[%clk 0:00:05.7]} 66. Bg5 {[%clk 0:00:04.3]} 66... Kd5 {[%clk 0:00:06.6]}
67. Kxb5 {[%clk 0:00:03.9]} 67... Ke4 {[%clk 0:00:07.5]} 68. Bh6 {[%clk
0:00:04.4]} 68... f4 {[%clk 0:00:08.4]} 69. Bxf4 {[%clk 0:00:05]} 1/2-1/2

[Event "Late-Titled-Tuesday-Blitz-March-19-2024"]
[Site "Chess.com"]
[Date "2024.03.19"]
[Round "10"]
[White "LeninGuerra"]
[Black "Zampronha1971"]
[Result "0-1"]
[WhiteElo "2660"]
[BlackElo "2357"]
[TimeControl "180+1"]
[EndTime "15:55:14 PDT"]
[Termination "Zampronha1971 won by resignation"]

1. e4 {[%clk 0:03:00.9]} 1... c5 {[%clk 0:02:59.3]} 2. Nf3 {[%clk 0:03:00.4]}
2... e6 {[%clk 0:02:59.9]} 3. b4 {[%clk 0:02:59.9]} 3... d5 {[%clk 0:02:59]} 4.
exd5 {[%clk 0:02:59.3]} 4... exd5 {[%clk 0:02:58.9]} 5. bxc5 {[%clk 0:02:59.5]}
5... Bxc5 {[%clk 0:02:57.9]} 6. Bd3 {[%clk 0:02:59.2]} 6... Nf6 {[%clk
0:02:56.7]} 7. O-O {[%clk 0:02:59]} 7... O-O {[%clk 0:02:56.3]} 8. Bb2 {[%clk
0:02:59.2]} 8... Bg4 {[%clk 0:02:51.7]} 9. h3 {[%clk 0:02:58.5]} 9... Bh5 {[%clk
0:02:51.7]} 10. Re1 {[%clk 0:02:56.4]} 10... Nc6 {[%clk 0:02:50.9]} 11. Nc3
{[%clk 0:02:39.6]} 11... Qd7 {[%clk 0:02:44.9]} 12. Na4 {[%clk 0:02:28.8]} 12...
Be7 {[%clk 0:02:44.4]} 13. Rb1 {[%clk 0:02:14.7]} 13... Rfe8 {[%clk 0:02:43.7]}
14. Be2 {[%clk 0:02:08.6]} 14... Rac8 {[%clk 0:02:37.5]} 15. Nh2 {[%clk
0:01:29.7]} 15... Bxe2 {[%clk 0:02:33.8]} 16. Rxe2 {[%clk 0:01:30]} 16... Ne4
{[%clk 0:02:28.3]} 17. Ng4 {[%clk 0:01:25.7]} 17... Nb4 {[%clk 0:02:20.2]} 18.
Nc3 {[%clk 0:01:18.3]} 18... Nxc3 {[%clk 0:02:15.9]} 19. dxc3 {[%clk 0:01:15.1]}
19... Nc6 {[%clk 0:02:12.4]} 20. c4 {[%clk 0:01:12]} 20... d4 {[%clk 0:02:08.4]}
21. a3 {[%clk 0:01:06.5]} 21... Bc5 {[%clk 0:01:47]} 22. Rd2 {[%clk 0:00:58.4]}
22... Rcd8 {[%clk 0:01:41.1]} 23. Qf3 {[%clk 0:00:54.6]} 23... h5 {[%clk
0:01:32.5]} 24. Nh2 {[%clk 0:00:54.2]} 24... Ne5 {[%clk 0:01:24.3]} 25. Qxh5
{[%clk 0:00:51.5]} 25... g6 {[%clk 0:01:21.5]} 26. Qh4 {[%clk 0:00:44.9]} 26...
Nxc4 {[%clk 0:01:18.1]} 27. Rdd1 {[%clk 0:00:44.2]} 27... Nxb2 {[%clk
0:01:16.3]} 28. Rxb2 {[%clk 0:00:45.1]} 28... Bxa3 {[%clk 0:01:11.6]} 29. Ra2
{[%clk 0:00:44.4]} 29... Be7 {[%clk 0:01:05.1]} 30. Qh6 {[%clk 0:00:34.2]} 30...
a6 {[%clk 0:01:03.4]} 31. Ng4 {[%clk 0:00:33.7]} 31... Qf5 {[%clk 0:00:55.3]}
32. Rd3 {[%clk 0:00:25.8]} 32... Bg5 {[%clk 0:00:55.3]} 33. Ra1 {[%clk
0:00:23.7]} 33... Qxg4 {[%clk 0:00:48.8]} 34. hxg4 {[%clk 0:00:21.2]} 34... Bxh6
{[%clk 0:00:48.6]} 35. Rb3 {[%clk 0:00:21.4]} 35... Rd7 {[%clk 0:00:47.9]} 36.
Ra4 {[%clk 0:00:21.5]} 36... Bg7 {[%clk 0:00:45]} 37. Kf1 {[%clk 0:00:21.2]}
37... Rc8 {[%clk 0:00:45.5]} 38. Ra2 {[%clk 0:00:19.4]} 38... Rc3 {[%clk
0:00:42.2]} 39. Rb6 {[%clk 0:00:18.5]} 39... Rdc7 {[%clk 0:00:40.1]} 40. f4
{[%clk 0:00:15.7]} 40... Bf8 {[%clk 0:00:35.3]} 41. f5 {[%clk 0:00:13.9]} 41...
Bc5 {[%clk 0:00:25.8]} 42. Rb1 {[%clk 0:00:12.5]} 42... gxf5 {[%clk 0:00:23.9]}
43. gxf5 {[%clk 0:00:12.2]} 43... Kg7 {[%clk 0:00:24.2]} 44. Ke2 {[%clk
0:00:12.2]} 44... Kf6 {[%clk 0:00:23.6]} 45. g4 {[%clk 0:00:12.3]} 45... Bd6
{[%clk 0:00:23.2]} 46. Kd1 {[%clk 0:00:11.5]} 46... d3 {[%clk 0:00:22.2]} 47.
cxd3 {[%clk 0:00:10.7]} 47... Rxd3+ {[%clk 0:00:23.1]} 48. Ke2 {[%clk
0:00:11.2]} 48... Rh3 {[%clk 0:00:23.4]} 49. Rb6 {[%clk 0:00:11.5]} 49... Rh2+
{[%clk 0:00:22.4]} 50. Kf3 {[%clk 0:00:12]} 50... Rxa2 {[%clk 0:00:22.3]} 51.
Rxd6+ {[%clk 0:00:12.4]} 51... Ke7 {[%clk 0:00:22.1]} 52. Rb6 {[%clk 0:00:12]}
52... Rac2 {[%clk 0:00:21]} 53. Kf4 {[%clk 0:00:11.6]} 53... R2c6 {[%clk
0:00:20.4]} 54. Rb3 {[%clk 0:00:11]} 54... b5 {[%clk 0:00:20.3]} 55. Kg5 {[%clk
0:00:10.4]} 55... Rc4 {[%clk 0:00:19.3]} 56. Re3+ {[%clk 0:00:10.6]} 56... Kd8
{[%clk 0:00:17.2]} 57. Rd3+ {[%clk 0:00:08.2]} 57... Rd7 {[%clk 0:00:17.2]} 58.
Rh3 {[%clk 0:00:07.5]} 58... b4 {[%clk 0:00:16.7]} 59. Kf6 {[%clk 0:00:06.8]}
59... a5 {[%clk 0:00:15.8]} 60. Rh8+ {[%clk 0:00:07.2]} 60... Kc7 {[%clk
0:00:15.8]} 61. Ra8 {[%clk 0:00:07.7]} 61... Rc5 {[%clk 0:00:15.2]} 62. g5
{[%clk 0:00:07.3]} 62... Rdd5 {[%clk 0:00:13.9]} 63. Ra7+ {[%clk 0:00:06.1]}
63... Kb6 {[%clk 0:00:14.3]} 64. Rxf7 {[%clk 0:00:05.6]} 64... Rxf5+ {[%clk
0:00:14.7]} 65. Ke6 {[%clk 0:00:06.2]} 65... Rce5+ {[%clk 0:00:14.1]} 66. Kd6
{[%clk 0:00:04.1]} 66... Rxf7 {[%clk 0:00:14.1]} 67. Kxe5 {[%clk 0:00:05]} 67...
Rg7 {[%clk 0:00:14.4]} 68. Kf6 {[%clk 0:00:05.4]} 68... Rxg5 {[%clk 0:00:14.5]}
69. Kxg5 {[%clk 0:00:06.3]} 69... b3 {[%clk 0:00:14.8]} 0-1